[Event "Early-Titled-Tuesday-Blitz-March-12-2024"]
[Site "Chess.com"]
[Date "2024.03.12"]
[Round "9"]
[White "effefe"]
[Black "David_George21"]
[Result "0-1"]
[WhiteElo "2375"]
[BlackElo "2305"]
[TimeControl "180+1"]
[EndTime "9:43:27 PDT"]
[Termination "David_George21 won on time"]

1. d4 {[%clk 0:02:57.8]} 1... Nf6 {[%clk 0:02:59.2]} 2. c4 {[%clk 0:02:58.1]}
2... e6 {[%clk 0:02:59.3]} 3. Nc3 {[%clk 0:02:58.7]} 3... Bb4 {[%clk 0:02:58.8]}
4. a3 {[%clk 0:02:59.6]} 4... Bxc3+ {[%clk 0:02:55.2]} 5. bxc3 {[%clk
0:03:00.5]} 5... O-O {[%clk 0:02:55.1]} 6. f3 {[%clk 0:03:00.6]} 6... d6 {[%clk
0:02:51]} 7. e4 {[%clk 0:03:00.7]} 7... b6 {[%clk 0:02:51.1]} 8. Bg5 {[%clk
0:02:59.5]} 8... Nc6 {[%clk 0:02:48.3]} 9. Bd3 {[%clk 0:02:59.4]} 9... e5 {[%clk
0:02:48]} 10. Ne2 {[%clk 0:02:57.5]} 10... Ba6 {[%clk 0:02:47.7]} 11. O-O {[%clk
0:02:56.4]} 11... Na5 {[%clk 0:02:47.8]} 12. f4 {[%clk 0:02:54.8]} 12... exf4
{[%clk 0:02:11.9]} 13. Nxf4 {[%clk 0:02:50.3]} 13... h6 {[%clk 0:02:09.3]} 14.
Bh4 {[%clk 0:02:38.9]} 14... g5 {[%clk 0:02:08.5]} 15. Nh5 {[%clk 0:02:33]}
15... Nxh5 {[%clk 0:01:54.4]} 16. Qxh5 {[%clk 0:02:33.9]} 16... Kg7 {[%clk
0:01:49.7]} 17. Bg3 {[%clk 0:02:12.5]} 17... Bxc4 {[%clk 0:01:48.9]} 18. Bxc4
{[%clk 0:02:06.6]} 18... Nxc4 {[%clk 0:01:49.8]} 19. Rf2 {[%clk 0:02:00.1]}
19... Qe7 {[%clk 0:01:30.7]} 20. h4 {[%clk 0:01:48]} 20... f6 {[%clk 0:01:18.3]}
21. Qe2 {[%clk 0:01:41.9]} 21... b5 {[%clk 0:01:10.5]} 22. a4 {[%clk 0:01:38.7]}
22... a6 {[%clk 0:01:04.3]} 23. Raf1 {[%clk 0:01:31.6]} 23... Rae8 {[%clk
0:01:00.6]} 24. hxg5 {[%clk 0:01:25.9]} 24... fxg5 {[%clk 0:00:57.2]} 25. axb5
{[%clk 0:01:18.9]} 25... axb5 {[%clk 0:00:54.2]} 26. e5 {[%clk 0:01:11.8]} 26...
dxe5 {[%clk 0:00:53.8]} 27. dxe5 {[%clk 0:01:11.6]} 27... Qc5 {[%clk 0:00:42.2]}
28. e6 {[%clk 0:01:02.7]} 28... Rf6 {[%clk 0:00:33]} 29. Kh1 {[%clk 0:00:37.2]}
29... Rexe6 {[%clk 0:00:33.1]} 30. Qd3 {[%clk 0:00:29.1]} 30... Rxf2 {[%clk
0:00:20.6]} 31. Rxf2 {[%clk 0:00:30]} 31... Qe7 {[%clk 0:00:16.9]} 32. Qd4+
{[%clk 0:00:24]} 32... Kh7 {[%clk 0:00:16]} 33. Qd3+ {[%clk 0:00:13.2]} 33...
Kg7 {[%clk 0:00:15.5]} 34. Qd4+ {[%clk 0:00:13.4]} 34... Kg8 {[%clk 0:00:13.4]}
35. Ra2 {[%clk 0:00:12.6]} 35... Nb6 {[%clk 0:00:09.1]} 36. Ra5 {[%clk
0:00:06.5]} 36... Qd7 {[%clk 0:00:07.2]} 37. Qb4 {[%clk 0:00:02.6]} 37... c6
{[%clk 0:00:06.4]} 38. Ra6 {[%clk 0:00:02.6]} 38... Nd5 {[%clk 0:00:06.6]} 39.
Ra8+ {[%clk 0:00:02.5]} 39... Re8 {[%clk 0:00:06.7]} 40. Rxe8+ {[%clk
0:00:01.7]} 40... Qxe8 {[%clk 0:00:07.6]} 41. Qd6 {[%clk 0:00:01.8]} 41... Kh7
{[%clk 0:00:05.9]} 42. Qc5 {[%clk 0:00:01.7]} 42... Qd7 {[%clk 0:00:05.8]} 43.
Qd4 {[%clk 0:00:02.1]} 43... Qe6 {[%clk 0:00:05.6]} 44. Qa7+ {[%clk 0:00:02.2]}
44... Kg6 {[%clk 0:00:05.4]} 45. Qd4 {[%clk 0:00:02.8]} 45... Qf6 {[%clk
0:00:04.5]} 46. Qc5 {[%clk 0:00:02.3]} 46... Qe6 {[%clk 0:00:04.5]} 47. Qa7
{[%clk 0:00:02.1]} 47... h5 {[%clk 0:00:04.6]} 48. Qc5 {[%clk 0:00:01.8]} 48...
h4 {[%clk 0:00:04.8]} 49. Bf2 {[%clk 0:00:02.4]} 49... Nf4 {[%clk 0:00:04.3]}
50. Bd4 {[%clk 0:00:02.3]} 50... Qe4 {[%clk 0:00:04.1]} 51. Qd6+ {[%clk
0:00:01.6]} 51... Kh5 {[%clk 0:00:04.5]} 0-1

[Event "Early-Titled-Tuesday-Blitz-March-12-2024"]
[Site "Chess.com"]
[Date "2024.03.12"]
[Round "9"]
[White "suyu28"]
[Black "ValeriyGrinev"]
[Result "1-0"]
[WhiteElo "2863"]
[BlackElo "2574"]
[TimeControl "180+1"]
[EndTime "9:43:33 PDT"]
[Termination "suyu28 won by resignation"]

1. d4 {[%clk 0:02:55.1]} 1... d5 {[%clk 0:02:59.8]} 2. c4 {[%clk 0:02:55.6]}
2... e6 {[%clk 0:03:00.4]} 3. Nc3 {[%clk 0:02:54.4]} 3... a6 {[%clk 0:03:01.1]}
4. cxd5 {[%clk 0:02:53.5]} 4... exd5 {[%clk 0:03:02]} 5. Qb3 {[%clk 0:02:54]}
5... c5 {[%clk 0:02:58.8]} 6. Qxd5 {[%clk 0:02:49.3]} 6... cxd4 {[%clk 0:02:52]}
7. Qxd8+ {[%clk 0:02:44.3]} 7... Kxd8 {[%clk 0:02:52.9]} 8. Ne4 {[%clk
0:02:44.4]} 8... Bf5 {[%clk 0:02:48.8]} 9. Ng3 {[%clk 0:02:44]} 9... Bb4+ {[%clk
0:02:48.5]} 10. Bd2 {[%clk 0:02:44.2]} 10... Bxd2+ {[%clk 0:02:48.8]} 11. Kxd2
{[%clk 0:02:45.1]} 11... Bg6 {[%clk 0:02:49.2]} 12. Nf3 {[%clk 0:02:46]} 12...
Nd7 {[%clk 0:02:49.2]} 13. Nxd4 {[%clk 0:02:42.8]} 13... Ngf6 {[%clk 0:02:49.4]}
14. e3 {[%clk 0:02:43]} 14... Nc5 {[%clk 0:02:42.2]} 15. Rc1 {[%clk 0:02:36]}
15... Rc8 {[%clk 0:02:40.6]} 16. f3 {[%clk 0:02:25.4]} 16... Kd7 {[%clk
0:02:27.5]} 17. Be2 {[%clk 0:02:21.5]} 17... Rhd8 {[%clk 0:02:26.7]} 18. b3
{[%clk 0:01:30.7]} 18... Ne6 {[%clk 0:02:24]} 19. Rxc8 {[%clk 0:01:22]} 19...
Kxc8 {[%clk 0:02:23.6]} 20. Rc1+ {[%clk 0:01:18.2]} 20... Kb8 {[%clk 0:02:23.4]}
21. Rc4 {[%clk 0:01:06.6]} 21... b5 {[%clk 0:02:23.2]} 22. Rc1 {[%clk
0:01:06.4]} 22... Nxd4 {[%clk 0:02:22.8]} 23. exd4 {[%clk 0:01:07.3]} 23...
Rxd4+ {[%clk 0:02:23]} 24. Ke1 {[%clk 0:01:07.7]} 24... Nd5 {[%clk 0:02:18.4]}
25. Nf1 {[%clk 0:00:54.3]} 25... Nb4 {[%clk 0:02:13.9]} 26. a4 {[%clk
0:00:51.6]} 26... bxa4 {[%clk 0:02:10.4]} 27. bxa4 {[%clk 0:00:51.4]} 27... Nc2+
{[%clk 0:02:10.1]} 28. Kf2 {[%clk 0:00:51.8]} 28... Rxa4 {[%clk 0:02:10.2]} 29.
Nd2 {[%clk 0:00:51.5]} 29... Nd4 {[%clk 0:02:05.9]} 30. Bc4 {[%clk 0:00:49.4]}
30... a5 {[%clk 0:02:02.3]} 31. h4 {[%clk 0:00:46.7]} 31... Rb4 {[%clk 0:02:01]}
32. g4 {[%clk 0:00:45.8]} 32... f6 {[%clk 0:01:55.3]} 33. h5 {[%clk 0:00:44.2]}
33... Be8 {[%clk 0:01:55.9]} 34. Ke3 {[%clk 0:00:42.7]} 34... Nc6 {[%clk
0:01:53.6]} 35. Bd3 {[%clk 0:00:42.5]} 35... h6 {[%clk 0:01:50.3]} 36. Rc5
{[%clk 0:00:41.9]} 36... Ka7 {[%clk 0:01:44.2]} 37. Nc4 {[%clk 0:00:42]} 37...
a4 {[%clk 0:01:39.2]} 38. Be4 {[%clk 0:00:39.6]} 38... Rb3+ {[%clk 0:01:33.8]}
39. Kf4 {[%clk 0:00:36.7]} 39... Nd4 {[%clk 0:01:30.6]} 40. Ra5+ {[%clk
0:00:34.3]} 40... Kb8 {[%clk 0:01:25.8]} 41. Ra8+ {[%clk 0:00:34.9]} 41... Kc7
{[%clk 0:01:26.4]} 42. Rxe8 {[%clk 0:00:35.8]} 42... Rc3 {[%clk 0:01:25.7]} 43.
Ne3 {[%clk 0:00:27.9]} 43... Ne2+ {[%clk 0:01:24.6]} 44. Kf5 {[%clk 0:00:28.3]}
44... Rxe3 {[%clk 0:01:25.2]} 45. Re7+ {[%clk 0:00:27.1]} 45... Kd6 {[%clk
0:01:22.8]} 46. Rxg7 {[%clk 0:00:25.9]} 46... Nd4+ {[%clk 0:01:19.7]} 47. Kxf6
{[%clk 0:00:26]} 47... Nxf3 {[%clk 0:01:17]} 48. Bf5 {[%clk 0:00:26.2]} 48...
Nd4 {[%clk 0:01:11.7]} 49. Rd7+ {[%clk 0:00:25.6]} 49... Kc5 {[%clk 0:01:11.3]}
50. Kg6 {[%clk 0:00:24.7]} 50... a3 {[%clk 0:01:09.9]} 51. Ra7 {[%clk
0:00:24.5]} 51... Nb5 {[%clk 0:01:10.4]} 52. Ra8 {[%clk 0:00:23]} 52... Kb6
{[%clk 0:01:09.1]} 53. Kxh6 {[%clk 0:00:21.7]} 53... Na7 {[%clk 0:01:09]} 54.
Rb8+ {[%clk 0:00:20.3]} 54... Kc7 {[%clk 0:01:07.6]} 55. Rb1 {[%clk 0:00:20.2]}
55... Nc6 {[%clk 0:01:07.2]} 56. Kg6 {[%clk 0:00:18.8]} 56... Nd4 {[%clk
0:00:59.9]} 57. h6 {[%clk 0:00:18.9]} 57... Rb3 {[%clk 0:00:46.2]} 58. Ra1
{[%clk 0:00:16.8]} 58... Nc6 {[%clk 0:00:23.5]} 59. h7 {[%clk 0:00:14.5]} 59...
Ne5+ {[%clk 0:00:19.3]} 60. Kf6 {[%clk 0:00:14.9]} 60... Nd7+ {[%clk 0:00:19]}
61. Bxd7 {[%clk 0:00:15]} 61... Rh3 {[%clk 0:00:17.8]} 62. Bf5 {[%clk
0:00:15.1]} 1-0

[Event "Early-Titled-Tuesday-Blitz-March-12-2024"]
[Site "Chess.com"]
[Date "2024.03.12"]
[Round "9"]
[White "Alenzer"]
[Black "shirovin"]
[Result "1-0"]
[WhiteElo "2161"]
[BlackElo "2062"]
[TimeControl "180+1"]
[EndTime "9:43:37 PDT"]
[Termination "Alenzer won on time"]

1. e4 {[%clk 0:02:59.4]} 1... c5 {[%clk 0:02:57.8]} 2. Nf3 {[%clk 0:02:59.2]}
2... d6 {[%clk 0:02:58.2]} 3. c3 {[%clk 0:02:59.5]} 3... Nf6 {[%clk 0:02:51.2]}
4. h3 {[%clk 0:02:58.3]} 4... Bd7 {[%clk 0:02:48.8]} 5. Bd3 {[%clk 0:02:57.7]}
5... g6 {[%clk 0:02:46.6]} 6. Bc2 {[%clk 0:02:56.1]} 6... Bc6 {[%clk 0:02:47.1]}
7. Qe2 {[%clk 0:02:53.6]} 7... Nbd7 {[%clk 0:02:41.9]} 8. O-O {[%clk 0:02:52.4]}
8... Bg7 {[%clk 0:02:41.5]} 9. d4 {[%clk 0:02:35]} 9... cxd4 {[%clk 0:02:28.7]}
10. cxd4 {[%clk 0:02:33]} 10... a6 {[%clk 0:02:27.5]} 11. Nc3 {[%clk 0:02:32.9]}
11... b5 {[%clk 0:02:26.5]} 12. a3 {[%clk 0:02:32.3]} 12... O-O {[%clk
0:02:25.2]} 13. Bg5 {[%clk 0:02:27.5]} 13... h6 {[%clk 0:02:20.6]} 14. Be3
{[%clk 0:02:25.2]} 14... Nb6 {[%clk 0:02:13.3]} 15. d5 {[%clk 0:02:13.5]} 15...
Bd7 {[%clk 0:02:11.9]} 16. Nd4 {[%clk 0:02:10.8]} 16... Nc4 {[%clk 0:02:09.3]}
17. b3 {[%clk 0:02:02.9]} 17... Nxe3 {[%clk 0:02:08.2]} 18. Qxe3 {[%clk
0:02:03.8]} 18... Rc8 {[%clk 0:02:03.7]} 19. Rac1 {[%clk 0:02:02.2]} 19... Nh7
{[%clk 0:01:40.6]} 20. Na2 {[%clk 0:01:53.5]} 20... Re8 {[%clk 0:01:18]} 21. Nb4
{[%clk 0:01:52.3]} 21... Qb6 {[%clk 0:01:13.4]} 22. Nbc6 {[%clk 0:01:30.6]}
22... Bxc6 {[%clk 0:01:10.9]} 23. Nxc6 {[%clk 0:01:25]} 23... Qxe3 {[%clk
0:00:54.7]} 24. fxe3 {[%clk 0:01:25.1]} 24... h5 {[%clk 0:00:55]} 25. Bd3 {[%clk
0:00:50.7]} 25... Bb2 {[%clk 0:00:50.9]} 26. Rc2 {[%clk 0:00:45.6]} 26... Bxa3
{[%clk 0:00:50.3]} 27. Ra2 {[%clk 0:00:44.3]} 27... Bc5 {[%clk 0:00:47.7]} 28.
Rxa6 {[%clk 0:00:43.5]} 28... Bxe3+ {[%clk 0:00:47.1]} 29. Kh2 {[%clk
0:00:43.1]} 29... b4 {[%clk 0:00:33.6]} 30. Ra4 {[%clk 0:00:34.6]} 30... Bd2
{[%clk 0:00:31.6]} 31. Ra7 {[%clk 0:00:25.7]} 31... Kf8 {[%clk 0:00:28.3]} 32.
Rb7 {[%clk 0:00:25.1]} 32... e6 {[%clk 0:00:25]} 33. Nxb4 {[%clk 0:00:20.9]}
33... Bxb4 {[%clk 0:00:21.5]} 34. Rxb4 {[%clk 0:00:20.6]} 34... exd5 {[%clk
0:00:22]} 35. exd5 {[%clk 0:00:20.9]} 35... Re3 {[%clk 0:00:21.2]} 36. Bxg6
{[%clk 0:00:20.5]} 36... Ng5 {[%clk 0:00:19.4]} 37. h4 {[%clk 0:00:18.5]} 37...
Kg7 {[%clk 0:00:19.5]} 38. Bxh5 {[%clk 0:00:17.3]} 38... Ne4 {[%clk 0:00:18.5]}
39. Rxf7+ {[%clk 0:00:13.2]} 39... Kh6 {[%clk 0:00:18.6]} 40. Bf3 {[%clk
0:00:13.6]} 40... Nd2 {[%clk 0:00:18.1]} 41. Rbf4 {[%clk 0:00:12.2]} 41... Nxf3+
{[%clk 0:00:13.1]} 42. Rxf3 {[%clk 0:00:12.3]} 42... Rxf3 {[%clk 0:00:11.7]} 43.
Rxf3 {[%clk 0:00:12.8]} 43... Rb8 {[%clk 0:00:12.1]} 44. Rd3 {[%clk 0:00:13]}
44... Rb5 {[%clk 0:00:11.4]} 45. g4 {[%clk 0:00:12.8]} 45... Kg6 {[%clk
0:00:11.6]} 46. Kg3 {[%clk 0:00:13.4]} 46... Kf6 {[%clk 0:00:11]} 47. Kf4 {[%clk
0:00:12.5]} 47... Rb4+ {[%clk 0:00:09.8]} 48. Kf3 {[%clk 0:00:12.2]} 48... Ke5
{[%clk 0:00:10.5]} 49. h5 {[%clk 0:00:12.1]} 49... Rb8 {[%clk 0:00:10.2]} 50.
Kg3 {[%clk 0:00:10.8]} 50... Rf8 {[%clk 0:00:10.9]} 51. g5 {[%clk 0:00:09]}
51... Kf5 {[%clk 0:00:09.8]} 52. Rf3+ {[%clk 0:00:09]} 1-0

[Event "Early-Titled-Tuesday-Blitz-March-12-2024"]
[Site "Chess.com"]
[Date "2024.03.12"]
[Round "9"]
[White "djano"]
[Black "sansanathalia"]
[Result "1-0"]
[WhiteElo "2592"]
[BlackElo "2373"]
[TimeControl "180+1"]
[EndTime "9:43:39 PDT"]
[Termination "djano won by checkmate"]

1. e4 {[%clk 0:03:00.4]} 1... c5 {[%clk 0:02:41.1]} 2. Nc3 {[%clk 0:02:59.9]}
2... d6 {[%clk 0:02:39.8]} 3. f4 {[%clk 0:02:59.9]} 3... Nf6 {[%clk 0:02:31.4]}
4. Nf3 {[%clk 0:02:59.9]} 4... e6 {[%clk 0:02:30.9]} 5. d4 {[%clk 0:02:54.3]}
5... cxd4 {[%clk 0:02:24.2]} 6. Nxd4 {[%clk 0:02:55.2]} 6... Be7 {[%clk
0:02:24.6]} 7. Be3 {[%clk 0:02:53.9]} 7... O-O {[%clk 0:02:23.2]} 8. Qf3 {[%clk
0:02:54.1]} 8... Nc6 {[%clk 0:02:22.7]} 9. O-O-O {[%clk 0:02:50]} 9... Qa5
{[%clk 0:02:18.9]} 10. Nb3 {[%clk 0:02:47.1]} 10... Qh5 {[%clk 0:02:10.6]} 11.
Qg3 {[%clk 0:02:43.5]} 11... a6 {[%clk 0:02:04.4]} 12. Be2 {[%clk 0:02:40.9]}
12... Qg6 {[%clk 0:01:57.3]} 13. Qf3 {[%clk 0:02:40.5]} 13... b5 {[%clk
0:01:57.1]} 14. f5 {[%clk 0:02:36.5]} 14... exf5 {[%clk 0:01:47]} 15. exf5
{[%clk 0:02:37.4]} 15... Bxf5 {[%clk 0:01:46.8]} 16. Qxc6 {[%clk 0:02:37.4]}
16... Bxc2 {[%clk 0:01:43.4]} 17. Rd4 {[%clk 0:02:30]} 17... Bxb3 {[%clk
0:01:08.6]} 18. axb3 {[%clk 0:02:27.4]} 18... Rfc8 {[%clk 0:01:06.2]} 19. Qb7
{[%clk 0:02:22.1]} 19... Bf8 {[%clk 0:00:53.6]} 20. Bd3 {[%clk 0:02:17.9]} 20...
Qh5 {[%clk 0:00:40.6]} 21. Qf3 {[%clk 0:02:15.2]} 21... Qe5 {[%clk 0:00:20.5]}
22. Kb1 {[%clk 0:02:09.4]} 22... b4 {[%clk 0:00:16.2]} 23. Ne4 {[%clk
0:02:07.4]} 23... Nxe4 {[%clk 0:00:15]} 24. Qxe4 {[%clk 0:02:08.3]} 24... Qh5
{[%clk 0:00:13.1]} 25. g4 {[%clk 0:02:01.3]} 25... Qh4 {[%clk 0:00:12.5]} 26.
Bf2 {[%clk 0:01:53.6]} 26... Qh3 {[%clk 0:00:10]} 27. Qe3 {[%clk 0:01:47.8]}
27... Qg2 {[%clk 0:00:09.2]} 28. Rg1 {[%clk 0:01:47.3]} 28... Qxh2 {[%clk
0:00:09]} 29. Qe4 {[%clk 0:01:45.9]} 29... Re8 {[%clk 0:00:08.2]} 30. Qg2 {[%clk
0:01:42.4]} 30... Qxg2 {[%clk 0:00:06.5]} 31. Rxg2 {[%clk 0:01:43.3]} 31... a5
{[%clk 0:00:05.5]} 32. g5 {[%clk 0:01:41.9]} 32... g6 {[%clk 0:00:05.8]} 33. Bb5
{[%clk 0:01:34.1]} 33... Re5 {[%clk 0:00:05.7]} 34. Bc6 {[%clk 0:01:30.3]} 34...
Rc8 {[%clk 0:00:05]} 35. Bd5 {[%clk 0:01:30.6]} 35... Rc5 {[%clk 0:00:04.3]} 36.
Bc4 {[%clk 0:01:27.2]} 36... d5 {[%clk 0:00:03.9]} 37. Bd3 {[%clk 0:01:24]}
37... Bg7 {[%clk 0:00:03.9]} 38. Rf4 {[%clk 0:01:18.9]} 38... Rc8 {[%clk
0:00:02.9]} 39. Rg1 {[%clk 0:01:18.6]} 39... Rce8 {[%clk 0:00:02.1]} 40. Rf1
{[%clk 0:01:11.9]} 40... R5e7 {[%clk 0:00:02.4]} 41. Ka2 {[%clk 0:01:09.7]}
41... Rc7 {[%clk 0:00:02.5]} 42. Bd4 {[%clk 0:01:08.6]} 42... Bxd4 {[%clk
0:00:02.2]} 43. Rxd4 {[%clk 0:01:09.5]} 43... Kg7 {[%clk 0:00:02.7]} 44. Rxd5
{[%clk 0:01:09.7]} 44... Re3 {[%clk 0:00:03.1]} 45. Bc4 {[%clk 0:01:09.7]} 45...
a4 {[%clk 0:00:03.4]} 46. Ra5 {[%clk 0:01:08.8]} 46... axb3+ {[%clk 0:00:03.3]}
47. Bxb3 {[%clk 0:01:09.7]} 47... Rce7 {[%clk 0:00:03]} 48. Ra4 {[%clk
0:01:08.6]} 48... R3e5 {[%clk 0:00:03.2]} 49. Rg1 {[%clk 0:01:07.2]} 49... Rb5
{[%clk 0:00:02.8]} 50. Rg4 {[%clk 0:01:07.3]} 50... Rbe5 {[%clk 0:00:02.5]} 51.
Raxb4 {[%clk 0:01:07.3]} 51... Ra5+ {[%clk 0:00:02.2]} 52. Ra4 {[%clk
0:01:07.9]} 52... Rb5 {[%clk 0:00:02.8]} 53. Bc4 {[%clk 0:01:07.7]} 53... Rc5
{[%clk 0:00:02.9]} 54. b3 {[%clk 0:01:04.4]} 54... Rf5 {[%clk 0:00:03.4]} 55.
Ka3 {[%clk 0:01:01.5]} 55... Re3 {[%clk 0:00:03.1]} 56. Ra7 {[%clk 0:01:00.1]}
56... h5 {[%clk 0:00:02.7]} 57. gxh6+ {[%clk 0:00:59.5]} 57... Kxh6 {[%clk
0:00:03.1]} 58. Rxf7 {[%clk 0:00:59.1]} 58... Rc5 {[%clk 0:00:01.4]} 59. Kb4
{[%clk 0:00:59.5]} 59... Rce5 {[%clk 0:00:01.4]} 60. Rf6 {[%clk 0:00:59.4]}
60... Kh5 {[%clk 0:00:01.3]} 61. Rgxg6 {[%clk 0:00:57.8]} 61... Rc5 {[%clk
0:00:01.5]} 62. Kxc5 {[%clk 0:00:57]} 62... Re5+ {[%clk 0:00:01.8]} 63. Bd5
{[%clk 0:00:57.1]} 63... Re3 {[%clk 0:00:01.6]} 64. Rh6+ {[%clk 0:00:57.1]}
64... Kg5 {[%clk 0:00:01.5]} 65. Rfg6+ {[%clk 0:00:57.5]} 65... Kf5 {[%clk
0:00:01.6]} 66. Re6 {[%clk 0:00:55.6]} 66... Rc3+ {[%clk 0:00:01.6]} 67. Bc4
{[%clk 0:00:56.1]} 67... Rc1 {[%clk 0:00:01.7]} 68. Rhf6+ {[%clk 0:00:56.3]}
68... Kg5 {[%clk 0:00:02.4]} 69. Rf8 {[%clk 0:00:56.2]} 69... Kh5 {[%clk
0:00:02.9]} 70. Re5+ {[%clk 0:00:55.5]} 70... Kg4 {[%clk 0:00:03.3]} 71. Re7
{[%clk 0:00:55.8]} 71... Kh3 {[%clk 0:00:03.1]} 72. Rg7 {[%clk 0:00:55.1]} 72...
Kh2 {[%clk 0:00:02.6]} 73. Rh8# {[%clk 0:00:55.1]} 1-0

[Event "Early-Titled-Tuesday-Blitz-March-12-2024"]
[Site "Chess.com"]
[Date "2024.03.12"]
[Round "9"]
[White "cthulhuuu"]
[Black "electrosaw"]
[Result "0-1"]
[WhiteElo "2399"]
[BlackElo "2563"]
[TimeControl "180+1"]
[EndTime "9:43:42 PDT"]
[Termination "electrosaw won on time"]

1. e4 {[%clk 0:03:00.1]} 1... c5 {[%clk 0:02:58.5]} 2. Nf3 {[%clk 0:03:00]} 2...
b6 {[%clk 0:02:58.4]} 3. g3 {[%clk 0:02:59.9]} 3... Bb7 {[%clk 0:02:58.6]} 4. d3
{[%clk 0:03:00.6]} 4... g6 {[%clk 0:02:58.4]} 5. Bg2 {[%clk 0:03:00.8]} 5... Bg7
{[%clk 0:02:59.1]} 6. O-O {[%clk 0:03:01.4]} 6... e6 {[%clk 0:02:59.7]} 7. Re1
{[%clk 0:03:01.3]} 7... a6 {[%clk 0:03:00]} 8. h4 {[%clk 0:02:59.3]} 8... h6
{[%clk 0:02:59.4]} 9. Nbd2 {[%clk 0:02:58.6]} 9... d6 {[%clk 0:02:59.5]} 10. a4
{[%clk 0:02:58.6]} 10... Ne7 {[%clk 0:02:59.7]} 11. Nc4 {[%clk 0:02:56.6]} 11...
b5 {[%clk 0:02:53.3]} 12. axb5 {[%clk 0:02:53.7]} 12... axb5 {[%clk 0:02:54.2]}
13. Rxa8 {[%clk 0:02:53.8]} 13... Bxa8 {[%clk 0:02:55.1]} 14. Ne3 {[%clk
0:02:52.7]} 14... Nbc6 {[%clk 0:02:54]} 15. c3 {[%clk 0:02:52.2]} 15... b4
{[%clk 0:02:53.3]} 16. d4 {[%clk 0:02:50.1]} 16... cxd4 {[%clk 0:02:30.8]} 17.
cxd4 {[%clk 0:02:48.7]} 17... d5 {[%clk 0:02:20.2]} 18. exd5 {[%clk 0:02:32.3]}
18... exd5 {[%clk 0:02:15.8]} 19. Nxd5 {[%clk 0:00:35.8]} 19... Qxd5 {[%clk
0:02:08.5]} 20. Ne5 {[%clk 0:00:35.9]} 20... Qb5 {[%clk 0:01:33.1]} 21. Nxc6
{[%clk 0:00:16.8]} 21... Bxc6 {[%clk 0:01:34]} 22. d5 {[%clk 0:00:16.2]} 22...
O-O {[%clk 0:01:22.6]} 23. dxc6 {[%clk 0:00:15.2]} 23... Nxc6 {[%clk 0:01:18.7]}
24. Qd5 {[%clk 0:00:06.7]} 24... Qxd5 {[%clk 0:01:11.4]} 25. Bxd5 {[%clk
0:00:07.6]} 25... Nd4 {[%clk 0:01:09.4]} 26. Re7 {[%clk 0:00:07.7]} 26... Rd8
{[%clk 0:00:54]} 27. Bc4 {[%clk 0:00:03.9]} 27... Rc8 {[%clk 0:00:50.3]} 28. b3
{[%clk 0:00:03.4]} 28... Nxb3 {[%clk 0:00:48.2]} 29. Bxb3 {[%clk 0:00:03.8]}
29... Rxc1+ {[%clk 0:00:47.8]} 30. Kg2 {[%clk 0:00:04.4]} 30... Rc3 {[%clk
0:00:42.7]} 31. Bxf7+ {[%clk 0:00:04.8]} 31... Kf8 {[%clk 0:00:43.1]} 32. Rb7
{[%clk 0:00:05.7]} 32... g5 {[%clk 0:00:36.7]} 33. h5 {[%clk 0:00:06]} 33... Rc2
{[%clk 0:00:31.3]} 34. Bg6 {[%clk 0:00:05.6]} 34... Rb2 {[%clk 0:00:30.9]} 35.
Rf7+ {[%clk 0:00:05.8]} 35... Kg8 {[%clk 0:00:31.4]} 36. Re7 {[%clk 0:00:06.1]}
36... Bd4 {[%clk 0:00:28.8]} 37. Re8+ {[%clk 0:00:02.4]} 37... Kg7 {[%clk
0:00:27.9]} 38. Re7+ {[%clk 0:00:02.9]} 38... Kf6 {[%clk 0:00:28.3]} 39. Rf7+
{[%clk 0:00:03.1]} 39... Ke6 {[%clk 0:00:29]} 40. Rf3 {[%clk 0:00:02.5]} 40...
Bc5 {[%clk 0:00:22.9]} 41. g4 {[%clk 0:00:02.7]} 41... Ke5 {[%clk 0:00:18.7]}
42. Rf5+ {[%clk 0:00:02.9]} 42... Kd6 {[%clk 0:00:19.1]} 43. Bf7 {[%clk
0:00:03.6]} 43... Rd2 {[%clk 0:00:16.4]} 44. Rf3 {[%clk 0:00:03.4]} 44... Rd4
{[%clk 0:00:16.1]} 45. Kh3 {[%clk 0:00:02.2]} 45... Rd2 {[%clk 0:00:13]} 46. Kg3
{[%clk 0:00:02.4]} 46... Bd4 {[%clk 0:00:12.6]} 47. Bg6 {[%clk 0:00:02.1]} 47...
Be5+ {[%clk 0:00:13.5]} 48. Kg2 {[%clk 0:00:02.1]} 48... Kc5 {[%clk 0:00:14.1]}
49. Rd3 {[%clk 0:00:02.5]} 49... Rxd3 {[%clk 0:00:13.7]} 50. Bxd3 {[%clk
0:00:02.7]} 50... Kd4 {[%clk 0:00:14.6]} 51. Bb1 {[%clk 0:00:03]} 51... Kc3
{[%clk 0:00:15]} 52. Kf3 {[%clk 0:00:03.5]} 52... b3 {[%clk 0:00:15.1]} 53. Ke4
{[%clk 0:00:03.8]} 53... Bd4 {[%clk 0:00:15.3]} 54. f4 {[%clk 0:00:04.1]} 54...
gxf4 {[%clk 0:00:13.5]} 55. Kxf4 {[%clk 0:00:05]} 55... Bf6 {[%clk 0:00:14.1]}
56. Kf3 {[%clk 0:00:02.1]} 56... Bg5 {[%clk 0:00:15]} 57. Ke2 {[%clk 0:00:02.2]}
57... Kb2 {[%clk 0:00:15.7]} 58. Bf5 {[%clk 0:00:02.5]} 58... Kc1 {[%clk
0:00:16.4]} 59. Kd3 {[%clk 0:00:02.3]} 59... b2 {[%clk 0:00:17]} 60. Ke4 {[%clk
0:00:02.9]} 60... b1=Q+ {[%clk 0:00:16.4]} 0-1